bitfinex/quotes_SOLUSD_20241001
["timestamp","ask_amount","ask_price","bid_price","bid_amount"]
[1727804325367,20.0,146.76,146.68,0.3867908]
[1727804325557,6.8156,146.73,146.68,0.3867908]
[1727804325760,6.8156,146.73,146.68,7.2042908]
[1727804325976,6.8156,146.73,146.68,0.3867908]
[1727804326179,37.0354,146.76,146.68,0.3867908]
[1727804326560,6.8148,146.74,146.69,6.8169]
[1727804326761,6.8155,146.73,146.68,7.2041908]
[1727804326968,6.8112,146.82,146.77,6.8133]
[1727804327172,16.5451,146.87,146.8,17.0291]
[1727804327361,6.8096,146.86,146.81,1.36204549]
[1727804327763,13.825,146.91,146.83,17.0262]
[1727804327988,6.8077,146.9,146.83,17.0262]
[1727804328167,6.8075,146.9,146.84,6.81]
[1727804328589,7.0181,146.91,146.79,17.0307]
[1727804328590,24.0355,146.91,146.79,17.0307]
[1727804328798,7.0181,146.91,146.72,34.0775]
[1727804328965,7.0181,146.91,146.79,6.8123]
[1727804328966,6.8096,146.85,146.79,6.8123]
[1727804329163,6.8103,146.84,146.79,17.031]
[1727804329359,17.0207,146.88,146.75,23.776884]
[1727804329588,6.8115,146.81,146.76,18.39653236]
[1727804329779,6.8115,146.81,146.76,17.0343]
[1727804329993,17.024,146.86,146.76,23.8476]
[1727804330294,6.812,146.8,146.76,17.0343]
[1727804330460,17.024,146.86,146.74,6.8147]
[1727804330667,6.812,146.8,146.75,6.8142]
[1727804330867,6.8115,146.81,146.75,23.8499]
[1727804331091,17.0262,146.84,146.71,17.0393]
[1727804331266,17.0262,146.84,146.68,41.5404908]
[1727804331267,6.8119,146.81,146.75,6.814]
[1727804331774,6.8119,146.81,146.73,17.0371]
[1727804331775,6.8115,146.81,146.73,17.0371]
[1727804331964,6.8132,146.78,146.72,6.8153]
[1727804332167,17.0299,146.81,146.68,0.3867908]
[1727804332388,17.5057,146.83,146.68,0.3867908]
[1727804332601,17.5057,146.83,146.73,17.0372]
[1727804332798,17.5057,146.83,146.75,6.8142]
[1727804332799,6.8115,146.81,146.75,6.8142]
[1727804332969,6.8119,146.8,146.75,6.8142]
[1727804333474,6.812,146.8,146.74,26.8147]
[1727804333801,34.5329,146.83,146.72,20.0]
[1727804333985,34.5329,146.83,146.73,30.591884]
[1727804334194,17.0296,146.81,146.7,6.8165]
[1727804334489,17.0296,146.81,146.68,0.3867908]
[1727804334666,17.0296,146.81,146.71,17.0395]
[1727804334866,17.0296,146.81,146.68,0.3867908]
[1727804335087,6.5986,146.8,146.69,6.817]
[1727804335397,6.8152,146.73,146.68,24.2480908]
[1727804335689,6.8152,146.73,146.68,17.4305908]
[1727804335903,6.8152,146.73,146.68,24.2479908]
[1727804337197,17.0317,146.79,146.68,24.2479908]
[1727804337504,6.8149,146.74,146.7,17.0405]
[1727804337808,17.0317,146.79,146.7,23.776884]
[1727804337985,6.8143,146.75,146.7,30.593384]
[1727804338398,6.8163,146.71,146.68,0.3867908]
[1727804338702,40.6586,146.8,146.68,0.3867908]
[1727804338703,6.817,146.69,146.68,0.3867908]
[1727804338881,17.0374,146.74,146.68,0.3867908]
[1727804338882,6.8166,146.7,146.68,0.3867908]
[1727804339401,6.817,146.69,146.68,0.3867908]
[1727804341406,34.6319,146.72,146.55,34.1178]
[1727804341612,17.0451,146.67,146.56,23.8804]
[1727804341784,17.0451,146.67,146.56,17.0577]
[1727804341985,6.4719,146.68,146.55,34.1178]
[1727804342188,6.8186,146.66,146.6,17.0525]
[1727804342391,6.4719,146.68,146.62,17.0499]
[1727804342589,6.8171,146.69,146.63,1.36348552]
[1727804342804,17.5921,146.72,146.65,23.776884]
[1727804342995,6.9968,146.74,146.64,20.0]
[1727804343187,6.8139,146.76,146.7,6.8162]
[1727804343387,6.8139,146.76,146.69,17.0421]
[1727804343388,6.8139,146.76,146.71,6.816]
[1727804343695,16.2035,146.78,146.71,6.816]
[1727804343696,16.2035,146.78,146.73,6.8152]
[1727804343890,16.2035,146.78,146.74,1.36260426]
[1727804344108,16.2035,146.78,146.7,43.776884]
[1727804344109,6.9968,146.79,146.75,1.36257008]
[1727804344286,6.9968,146.79,146.73,17.0371]
[1727804344617,17.014,146.84,146.74,45.1394564]
[1727804344923,6.8113,146.82,146.77,6.8133]
[1727804345211,17.014,146.84,146.76,23.776884]
[1727804345212,6.8106,146.83,146.78,8.17503912]
[1727804345396,24.6486,146.91,146.79,1.36214644]
[1727804345586,6.808,146.89,146.81,17.0287]
[1727804345792,6.808,146.89,146.76,23.776884]
[1727804345793,24.6486,146.91,146.82,43.776884]
[1727804345986,24.6486,146.91,146.83,18.38695566]
[1727804346214,6.8078,146.89,146.83,23.8359]
[1727804346615,24.6486,146.91,146.83,17.0254]
[1727804346914,6.8078,146.89,146.83,17.0254]
[1727804347093,6.8084,146.88,146.84,23.776884]
[1727804347294,24.6486,146.91,146.83,17.0254]
[1727804347295,6.8078,146.89,146.83,17.0254]
[1727804347688,24.6486,146.91,146.83,17.0254]
[1727804347889,24.6486,146.91,146.85,6.8096]
[1727804347890,31.4555,146.91,146.85,6.8096]
[1727804348104,31.4555,146.91,146.86,1.36139837]
[1727804348309,24.6486,146.91,146.86,1.36139837]
[1727804348519,17.7723,146.91,146.86,1.36139837]
[1727804348825,17.7723,146.91,146.86,25.19289837]
[1727804348999,17.7723,146.91,146.73,14.4681]
[1727804349200,17.7723,146.91,146.79,6.8121]
[1727804349201,6.8102,146.84,146.79,6.8121]
[1727804349512,6.8106,146.83,146.78,17.0312]
[1727804349904,6.811,146.82,146.78,17.0312]
[1727804350219,6.8101,146.84,146.78,23.844]
[1727804350517,6.8087,146.87,146.82,23.776884]
[1727804350695,17.0196,146.89,146.73,54.21166311]
[1727804350896,6.8096,146.85,146.79,6.812]
[1727804351127,17.7723,146.91,146.77,17.0333]
[1727804351413,17.7723,146.91,146.77,23.8466]
[1727804351414,6.8111,146.82,146.77,23.8466]
[1727804351628,17.7723,146.91,146.74,23.8514]
[1727804351629,6.8126,146.79,146.74,23.8514]
[1727804351799,6.6695,146.84,146.68,34.0869]
[1727804352119,6.6695,146.84,146.64,88.30726311]
[1727804352120,17.03,146.8,146.7,17.0404]
[1727804352421,33.6984,146.8,146.68,6.8175]
[1727804352628,33.6984,146.8,146.64,34.0956]
[1727804353230,6.8152,146.74,146.69,6.8168]
[1727804353519,6.8143,146.75,146.69,6.8168]
[1727804354025,6.8142,146.76,146.7,6.8165]
[1727804354207,6.8143,146.75,146.7,6.8165]
[1727804354414,50.7302,146.8,146.64,17.0484]
[1727804354626,20.0,146.79,146.56,40.7786]
[1727804354920,6.8179,146.68,146.62,6.8202]
[1727804355108,6.5726,146.72,146.6,6.8212]
[1727804355109,6.8189,146.65,146.6,6.8212]
[1727804355416,17.4497,146.71,146.53,0.8396901]
[1727804355617,6.8201,146.63,146.57,6.8224]
[1727804355829,6.8205,146.62,146.56,6.8229]
[1727804356029,6.8208,146.61,146.54,23.8829]
[1727804356196,6.8227,146.57,146.53,0.8396901]
[1727804356400,17.0497,146.63,146.53,0.8396901]
[1727804356604,6.8996,146.6,146.53,0.8396901]
[1727804356813,6.8231,146.56,146.53,0.8396901]
[1727804357243,6.8996,146.6,146.53,0.8396901]
[1727804357244,6.824,146.54,146.53,0.8396901]
[1727804357599,6.8232,146.56,146.53,0.8396901]
[1727804357816,6.824,146.54,146.53,0.8396901]
[1727804358400,17.5678,146.58,146.53,0.8396901]
[1727804358821,6.8231,146.57,146.53,0.8396901]
[1727804359216,6.8231,146.56,146.53,0.8396901]
[1727804359427,17.5678,146.58,146.53,0.8396901]
[1727804359724,6.824,146.54,146.53,0.8396901]
[1727804360429,17.5678,146.58,146.53,0.8396901]
[1727804360618,6.8236,146.55,146.53,0.8396901]
[1727804361004,17.5678,146.58,146.53,0.8396901]
[1727804361212,17.5678,146.58,146.54,6.824]
[1727804361403,17.5678,146.58,146.53,0.8396901]
[1727804361715,6.824,146.54,146.53,0.8396901]
[1727804363899,6.8234,146.56,146.53,0.8396901]
[1727804364241,6.8996,146.6,146.53,0.8396901]
[1727804364403,6.8217,146.59,146.54,6.824]
[1727804364605,13.721,146.6,146.54,6.824]
[1727804365013,6.8208,146.61,146.55,6.8234]
[1727804365217,6.8213,146.6,146.55,6.8234]
[1727804365405,17.7314,146.64,146.54,40.836884]
[1727804365607,6.8204,146.62,146.56,6.8229]
[1727804365819,6.8204,146.62,146.57,6.8226]
[1727804366139,24.5512,146.64,146.58,17.0554]
[1727804366303,17.7314,146.64,146.58,17.0554]
[1727804366507,17.7314,146.64,146.59,8.18563618]
[1727804366815,6.8209,146.61,146.55,17.0588]
[1727804367022,17.7314,146.64,146.55,17.0588]
[1727804367332,6.8213,146.6,146.55,23.8819]
[1727804367513,6.821,146.61,146.56,30.599884]
[1727804367912,17.7314,146.64,146.56,23.776884]
[1727804368110,17.7314,146.64,146.53,0.8396901]
[1727804368111,6.8223,146.58,146.53,0.8396901]
[1727804368317,34.7809,146.64,146.53,0.8396901]
[1727804368318,6.8226,146.57,146.53,0.8396901]
[1727804368614,6.824,146.54,146.53,0.8396901]
[1727804376921,6.8231,146.57,146.53,0.8396901]
[1727804377121,17.0501,146.63,146.54,1.36452605]
[1727804377349,17.0501,146.63,146.53,0.8396901]
[1727804377649,6.8209,146.61,146.56,6.8229]
[1727804377822,17.7314,146.64,146.54,17.0594]
[1727804378017,6.8225,146.58,146.54,17.0594]
[1727804378222,34.7807,146.64,146.54,23.8834]
[1727804378439,6.8218,146.59,146.54,23.8834]
[1727804378941,17.0522,146.61,146.53,7.6640901]
[1727804379328,6.8222,146.58,146.53,7.6641901]
[1727804379536,17.7314,146.64,146.54,23.776884]
[1727804379735,6.823,146.57,146.53,0.8396901]
[1727804379923,6.8228,146.57,146.53,7.6641901]
[1727804380122,6.8231,146.56,146.53,0.8396901]
[1727804380536,17.0523,146.61,146.53,0.8396901]
[1727804380864,6.8233,146.56,146.53,0.8396901]
[1727804381066,6.8226,146.58,146.53,7.6638901]
[1727804381268,6.823,146.57,146.53,0.8396901]
[1727804381437,17.0523,146.61,146.54,6.824]
[1727804381638,17.0523,146.61,146.53,0.8396901]
[1727804381867,6.8233,146.56,146.53,0.8396901]
[1727804382252,6.824,146.54,146.53,0.8396901]
[1727804383053,6.8237,146.55,146.53,0.8396901]
[1727804383949,17.0526,146.61,146.53,0.8396901]
[1727804384644,17.7314,146.64,146.53,0.8396901]
[1727804384855,6.824,146.54,146.53,0.8396901]
[1727804386944,20.0,146.59,146.53,0.8396901]
[1727804387144,6.8536,146.66,146.53,0.8396901]
[1727804387145,17.0501,146.63,146.53,24.6165741]
[1727804387368,6.8536,146.66,146.53,0.8396901]
[1727804387369,6.824,146.54,146.53,0.8396901]
[1727804387553,34.1039,146.62,146.53,0.8396901]
[1727804387749,6.8231,146.56,146.53,0.8396901]
[1727804387968,6.824,146.55,146.53,0.8396901]
[1727804388166,17.0551,146.59,146.53,0.8396901]
[1727804388371,6.8231,146.56,146.53,0.8396901]
[1727804388580,6.8236,146.55,146.53,0.8396901]
[1727804389188,6.824,146.54,146.53,0.8396901]
[1727804389565,17.0538,146.6,146.53,0.8396901]
[1727804389886,6.824,146.55,146.53,0.8396901]
[1727804390060,6.824,146.54,146.53,0.8396901]
[1727804390970,34.1039,146.62,146.53,0.8396901]
[1727804391172,17.0527,146.61,146.53,0.8396901]
[1727804391368,6.8235,146.56,146.53,0.8396901]
[1727804391555,6.8225,146.58,146.53,0.8396901]
[1727804391753,6.8216,146.6,146.55,6.8235]
[1727804392059,34.0952,146.65,146.54,23.776884]
[1727804392060,6.8225,146.58,146.54,17.0595]
[1727804392386,6.8225,146.58,146.54,23.8834]
[1727804392883,17.0536,146.6,146.53,0.8396901]
[1727804393256,6.8237,146.55,146.53,0.8396901]
[1727804393458,17.056,146.58,146.53,0.8396901]
[1727804393877,6.8239,146.55,146.53,0.8396901]
[1727804394080,17.056,146.58,146.53,0.8396901]
[1727804394081,6.824,146.54,146.53,0.8396901]
[1727804394778,34.1039,146.62,146.53,0.8396901]
[1727804394779,6.8231,146.57,146.53,0.8396901]
[1727804394978,17.0526,146.61,146.53,0.8396901]
[1727804395277,6.8236,146.55,146.53,0.8396901]
[1727804395470,34.1039,146.62,146.53,0.8396901]
[1727804395654,6.8227,146.57,146.53,0.8396901]
[1727804395853,6.8227,146.57,146.53,7.6641901]
[1727804396056,6.8231,146.56,146.53,0.8396901]
[1727804396377,6.8236,146.55,146.53,0.8396901]
[1727804396577,6.824,146.54,146.53,0.8396901]
[1727804396969,6.8232,146.56,146.53,0.8396901]
[1727804397170,17.0522,146.61,146.53,0.8396901]
[1727804397487,6.8236,146.55,146.53,0.8396901]
[1727804397662,17.0522,146.61,146.53,7.6641901]
[1727804397865,6.8222,146.59,146.54,6.8239]
[1727804398280,17.0522,146.61,146.53,0.8396901]
[1727804398590,6.8231,146.56,146.53,0.8396901]
[1727804398788,6.824,146.54,146.53,0.8396901]
[1727804398976,6.8237,146.55,146.53,0.8396901]
[1727804399179,17.0549,146.59,146.53,0.8396901]
[1727804399180,6.824,146.54,146.53,0.8396901]
[1727804399690,6.824,146.55,146.53,0.8396901]
[1727804399981,6.824,146.54,146.53,0.8396901]
[1727804402185,16.5819,146.58,146.53,7.6639901]
[1727804402186,6.8222,146.58,146.53,7.6639901]
[1727804402483,17.3936,146.64,146.55,17.0585]
[1727804402692,17.3936,146.64,146.57,6.8222]
[1727804402872,17.3936,146.64,146.59,6.8215]
[1727804402873,6.8197,146.64,146.59,6.8215]
[1727804403059,23.9003,146.66,146.57,17.0561]
[1727804403060,6.8203,146.62,146.57,6.8222]
[1727804403265,6.8536,146.66,146.56,47.657084]
[1727804403479,6.8536,146.66,146.54,6.8236]
[1727804403674,6.8536,146.66,146.53,0.8396901]
[1727804403675,6.824,146.55,146.53,0.8396901]
[1727804404005,6.8536,146.66,146.53,0.8396901]
[1727804404293,6.8236,146.55,146.53,0.8396901]
[1727804404991,6.824,146.54,146.53,0.8396901]
[1727804405661,50.600884,146.54,146.53,0.8396901]
[1727804405875,6.8269,146.48,146.43,23.9007]
[1727804406077,17.0625,146.52,146.44,6.8286]
[1727804406277,6.8283,146.45,146.4,6.8302]
[1727804406478,23.776884,146.51,146.39,17.9162901]
[1727804406479,17.0655,146.5,146.39,17.9162901]
[1727804406681,6.8292,146.43,146.39,17.9162901]
[1727804406907,20.0,146.49,146.39,17.9162901]
[1727804407189,20.0,146.49,146.4,6.8303]
[1727804407392,20.0,146.49,146.39,24.7471901]
[1727804407596,6.8282,146.46,146.4,6.8305]
[1727804407768,6.8283,146.45,146.39,24.7471901]
[1727804408093,6.8275,146.47,146.42,6.8296]
[1727804408600,6.8292,146.43,146.39,0.8396901]
[1727804408766,20.0,146.46,146.39,0.8396901]
[1727804408975,6.8306,146.4,146.39,0.8396901]
[1727804409406,30.607484,146.4,146.39,0.8396901]
[1727804409577,50.607484,146.4,146.39,0.8396901]
[1727804410094,6.8328,146.36,146.3,6.8352]
[1727804410391,6.8343,146.32,146.26,7.0561643]
[1727804410701,6.8343,146.32,146.26,0.2194643]
[1727804410898,23.776884,146.36,146.26,0.2194643]
[1727804411081,17.1286,146.37,146.27,17.0914]
[1727804411471,6.8338,146.34,146.27,23.9277]
[1727804411669,6.8338,146.34,146.27,17.0914]
[1727804411880,6.8315,146.38,146.3,17.0881]
[1727804412169,23.776884,146.39,146.31,6.8343]
[1727804412375,6.8329,146.35,146.3,23.9232]
[1727804412575,6.8324,146.36,146.31,6.8347]
[1727804412793,6.832,146.37,146.3,17.0881]
[1727804413098,6.8324,146.36,146.3,17.0881]
[1727804413279,17.0777,146.39,146.26,51.4949643]
[1727804413475,6.8339,146.33,146.27,26.8366]
[1727804413976,17.0777,146.39,146.27,20.0]
[1727804414183,20.0,146.42,146.27,20.0]
[1727804414692,20.0,146.42,146.32,17.0857]
[1727804415001,16.602,146.43,146.33,23.776884]
[1727804415176,24.5732,146.49,146.35,23.776884]
[1727804415502,49.7,146.6,146.42,17.0734]
[1727804415503,6.7639,146.55,146.42,17.0734]
[1727804415800,6.8241,146.54,146.47,6.8273]
[1727804415972,6.8259,146.5,146.43,6.8287]
[1727804416179,6.8253,146.52,146.44,20.0]
[1727804416373,6.7639,146.55,146.45,6.8281]
[1727804416577,6.8246,146.53,146.47,6.8272]
[1727804416786,6.8246,146.53,146.45,30.604684]
[1727804417000,6.8254,146.51,146.45,6.8278]
[1727804417418,6.7639,146.55,146.45,23.776884]
[1727804417703,6.8212,146.61,146.55,6.8234]
[1727804418303,16.5278,146.63,146.53,17.0605]
[1727804418485,16.5278,146.63,146.51,50.602184]
[1727804418486,6.8226,146.57,146.51,50.602184]
[1727804418681,33.5779,146.63,146.51,20.0]
[1727804418902,33.5779,146.63,146.52,6.8248]
[1727804419290,16.5278,146.63,146.52,17.062]
[1727804419609,16.5278,146.63,146.53,23.776884]
[1727804419811,16.5278,146.63,146.53,6.824]
[1727804420317,6.8199,146.63,146.56,17.0575]
[1727804420606,6.8199,146.63,146.57,8.18654719]
[1727804420779,6.8199,146.63,146.57,6.8224]
[1727804420976,6.8204,146.62,146.56,23.8806]
[1727804421176,6.8209,146.61,146.56,17.0575]
[1727804421405,16.7203,146.7,146.57,23.776884]
[1727804421704,6.818,146.68,146.6,23.776884]
[1727804421908,16.7203,146.7,146.62,17.0506]
[1727804422083,23.537,146.7,146.63,1.36342623]
[1727804422290,6.8167,146.7,146.64,6.8193]
[1727804422588,17.8752901,146.76,146.65,17.047]
[1727804422787,17.8752901,146.76,146.67,6.8179]
[1727804422994,0.8396901,146.76,146.68,40.820584]
[1727804423383,7.6534901,146.76,146.7,6.8165]
[1727804423591,0.8396901,146.76,146.71,8.17890065]
[1727804423814,6.8143,146.75,146.69,6.8166]
[1727804424186,0.8396901,146.76,146.71,17.0402]
[1727804424401,0.8396901,146.76,146.72,8.1783194]
[1727804424604,0.8396901,146.76,146.73,6.8152]
[1727804425008,0.8396901,146.76,146.74,17.0364]
[1727804425419,0.8396901,146.76,146.75,6.8143]
[1727804425711,0.8396901,146.76,146.72,20.0]
[1727804425712,0.8396901,146.76,146.72,6.8154]
[1727804426707,0.8396901,146.76,146.73,6.8151]
[1727804426912,0.8396901,146.76,146.72,23.776884]
[1727804426913,0.8396901,146.76,146.72,6.8154]
[1727804427418,6.8158,146.72,146.67,20.0]
[1727804427612,0.8396901,146.76,146.67,20.0]
[1727804427925,0.8396901,146.76,146.66,17.0453]
[1727804428231,6.8163,146.71,146.66,17.0453]
[1727804428724,23.776884,146.72,146.62,17.0499]
[1727804429024,6.8176,146.68,146.63,6.8198]
[1727804429327,20.0,146.73,146.65,6.8188]
[1727804429510,6.818,146.68,146.62,23.8702]
[1727804429928,20.0,146.73,146.63,20.0]
[1727804430126,6.8171,146.69,146.63,20.0]
[1727804430425,6.8161,146.71,146.65,6.8188]
[1727804430609,20.0,146.73,146.63,20.0]
[1727804430610,20.0,146.73,146.64,40.824284]
[1727804430802,20.8396901,146.76,146.64,23.776884]
[1727804431000,20.0,146.72,146.62,23.776884]
[1727804431225,6.8177,146.68,146.63,20.0]
[1727804431429,20.0,146.72,146.62,6.8198]
[1727804431600,6.8181,146.67,146.62,6.8198]
[1727804431804,6.8175,146.68,146.63,6.8198]
[1727804432006,23.776884,146.69,146.57,6.8222]
[1727804432310,17.0451,146.67,146.56,17.057]
[1727804432503,43.776884,146.66,146.57,6.8226]
[1727804432722,17.0451,146.67,146.56,17.057]
[1727804432932,43.776884,146.69,146.6,6.8211]
[1727804433226,43.776884,146.69,146.62,23.8707]
[1727804433227,20.0,146.69,146.62,23.8707]
[1727804433433,20.0,146.67,146.58,17.0545]
[1727804433731,6.8213,146.6,146.55,6.8234]
[1727804433928,6.8223,146.58,146.54,17.0595]
[1727804434115,6.8222,146.58,146.52,6.8245]
[1727804434313,6.8222,146.58,146.53,6.8244]
[1727804434521,6.8222,146.58,146.51,17.0634]
[1727804434728,6.8217,146.59,146.53,6.8241]
[1727804435037,23.776884,146.62,146.51,17.0634]
[1727804435235,17.0534,146.6,146.51,17.0634]
[1727804435408,23.776884,146.62,146.53,6.8245]
[1727804435608,6.8222,146.58,146.53,6.8245]
[1727804436032,6.8222,146.58,146.51,17.0634]
[1727804436229,23.776884,146.61,146.51,17.0634]
[1727804436435,6.8216,146.6,146.54,6.824]
[1727804436729,34.0918,146.67,146.53,17.0602]
[1727804436730,17.0474,146.65,146.53,17.0602]
[1727804437030,17.0512,146.62,146.53,17.0602]
[1727804437333,6.8228,146.57,146.52,6.8245]
[1727804437717,6.8228,146.57,146.5,17.0645]
[1727804437718,6.8231,146.56,146.51,6.8254]
[1727804437911,6.8237,146.55,146.5,23.8903]
[1727804438107,34.0918,146.67,146.53,17.0613]
[1727804438328,40.5222,146.71,146.54,1.36433591]
[1727804438535,6.4399,146.71,146.62,17.0499]
[1727804439405,6.8177,146.68,146.62,23.8698]
[1727804439724,6.8196,146.64,146.59,26.8213]
[1727804440023,17.0435,146.69,146.58,17.0544]
[1727804440228,6.8194,146.65,146.6,6.8212]
[1727804440423,17.0435,146.69,146.58,17.0544]
[1727804440610,6.8193,146.65,146.59,6.8213]
[1727804440819,20.0,146.7,146.54,20.0]
[1727804441008,6.8181,146.67,146.6,17.0522]
[1727804441240,6.8175,146.69,146.61,1.36365031]
[1727804441415,6.4399,146.71,146.57,54.1127]
[1727804441744,6.4399,146.71,146.57,20.0]
[1727804441912,6.4399,146.71,146.54,20.0]
[1727804441913,40.5215,146.71,146.54,20.0]
[1727804442115,6.8195,146.64,146.59,6.8212]
[1727804442515,6.8199,146.63,146.58,26.8221]
[1727804443144,6.8204,146.62,146.58,20.0]
[1727804443439,6.8199,146.63,146.58,26.8218]
[1727804444227,6.8186,146.66,146.61,6.8207]
[1727804444416,6.818,146.67,146.62,6.8199]
[1727804444617,6.818,146.67,146.58,20.0]
[1727804444618,6.4399,146.71,146.58,20.0]
[1727804444926,6.8185,146.66,146.61,23.8722]
[1727804445431,6.8183,146.67,146.62,6.8202]
[1727804445648,16.3036,146.72,146.61,34.1029]
[1727804445819,6.8148,146.74,146.69,6.817]
[1727804446020,6.6072,146.77,146.69,1.36298646]
[1727804446315,6.6072,146.77,146.68,17.0434]
[1727804446316,6.8156,146.73,146.68,17.0434]
[1727804446537,6.6072,146.77,146.68,23.8609]
[1727804446733,6.817,146.7,146.66,20.0]
[1727804446913,6.8171,146.69,146.65,17.047]
[1727804447117,6.8172,146.69,146.65,6.8188]
[1727804447316,6.8175,146.68,146.63,20.0]
[1727804447717,0.8396901,146.76,146.63,20.0]
[1727804447926,6.8171,146.69,146.64,6.819]
[1727804448134,6.817,146.7,146.65,6.8184]
[1727804448325,0.8396901,146.76,146.65,20.0]
[1727804448523,6.8149,146.74,146.69,6.817]
[1727804448714,0.8396901,146.76,146.67,17.045]
[1727804449035,6.8152,146.73,146.68,6.8175]
[1727804449232,6.8158,146.72,146.67,23.8629]
[1727804449436,6.8162,146.71,146.68,20.0]
[1727804449624,0.8396901,146.76,146.7,23.776884]
[1727804449827,0.8396901,146.76,146.65,74.21166311]
[1727804449828,0.8396901,146.76,146.73,6.8151]
[1727804450148,0.8396901,146.76,146.73,17.0373]
[1727804450442,0.8396901,146.76,146.74,6.8147]
[1727804450646,0.8396901,146.76,146.73,17.0373]
[1727804451520,7.6535901,146.76,146.7,37.0413]
[1727804451745,0.8396901,146.76,146.73,6.815]
[1727804452119,0.8396901,146.76,146.74,17.0363]
[1727804452346,0.8396901,146.76,146.75,26.8143]
[1727804453035,0.8396901,146.76,146.75,50.591184]
[1727804454539,0.8396901,146.76,146.75,51.953249]
[1727804454957,0.8396901,146.76,146.75,50.591184]
[1727804456028,0.8396901,146.76,146.74,20.0]
[1727804456219,0.8396901,146.76,146.75,26.8143]
[1727804458244,0.8396901,146.76,146.74,6.8146]
[1727804458448,7.6535901,146.76,146.71,6.816]
[1727804458640,0.8396901,146.76,146.7,17.0412]
[1727804458844,0.8396901,146.76,146.68,6.8171]
[1727804458845,6.8153,146.73,146.68,6.8171]
[1727804459141,0.8396901,146.76,146.67,17.0447]
[1727804459344,6.8148,146.74,146.67,17.0447]
[1727804459537,0.8396901,146.76,146.67,17.0447]
[1727804459852,7.6535901,146.76,146.71,6.816]
[1727804460223,0.8396901,146.76,146.64,61.18116311]
[1727804460419,0.8396901,146.76,146.71,23.776884]
[1727804460641,0.8396901,146.76,146.74,17.0366]
[1727804460847,0.8396901,146.76,146.71,23.776884]
[1727804461050,7.6534901,146.76,146.71,6.8161]
[1727804461346,7.6534901,146.76,146.71,20.0]
[1727804461557,0.8396901,146.76,146.71,20.0]
[1727804461722,0.8396901,146.76,146.73,6.8148]
[1727804462325,0.8396901,146.76,146.72,17.0385]
[1727804462541,0.8396901,146.76,146.69,17.0423]
[1727804462742,0.8396901,146.76,146.61,54.21166311]
[1727804462743,17.0369,146.74,146.61,54.21166311]
[1727804462955,6.8167,146.7,146.63,17.0492]
[1727804463125,6.8171,146.69,146.64,6.8193]
[1727804463451,6.818,146.67,146.59,6.8396]
[1727804463756,6.818,146.67,146.58,63.55387016]
[1727804463757,6.8199,146.63,146.58,6.8221]
[1727804463923,17.0447,146.68,146.57,17.0565]
[1727804464254,20.0,146.72,146.53,17.0602]
[1727804464255,17.0481,146.65,146.53,17.0602]
[1727804464425,6.8222,146.58,146.53,23.8847]
[1727804464619,6.8232,146.56,146.51,7.09326486]
[1727804464855,24.0514,146.62,146.51,7.09326486]
[1727804465151,23.776884,146.61,146.49,17.065]
[1727804465651,24.0514,146.62,146.48,8.1921]
[1727804465652,23.776884,146.58,146.48,8.1921]
[1727804465945,23.776884,146.58,146.43,9.34220705]
[1727804465946,8.19,146.52,146.47,20.4813]
[1727804466146,8.19,146.52,146.46,8.1929]
[1727804466147,23.776884,146.58,146.43,16.43240288]
[1727804466337,8.1904,146.52,146.43,36.91910288]
[1727804466537,8.1906,146.51,146.43,29.82890705]
[1727804467042,8.19,146.52,146.43,20.4867]
[1727804467419,30.667984,146.51,146.43,20.4867]
[1727804467650,6.8911,146.51,146.45,8.1938]